lending/lending_fUSD_20250131
["ID","MTS","AMOUNT","RATE_DAILY","PERIOD"]
[351135376,1738348256088,-500.0,0.00017669,2]
[351135377,1738348256097,-500.0,0.00017669,2]
[351135378,1738348256107,-536.21,0.00017669,2]
[351135379,1738348256116,-500.0,0.00017669,2]
[351135380,1738348256126,-1030.96,0.00017669,2]
[351135381,1738348256135,-872.1,0.00017669,2]
[351135382,1738348256144,-544.21,0.00017669,2]
[351135383,1738348256154,-500.0,0.00017669,2]
[351135384,1738348256163,-500.0,0.00017669,2]
[351135385,1738348256176,-4715.16,0.00017669,2]
[351135386,1738348256185,-500.0,0.00017669,2]
[351135387,1738348256194,-993.3,0.00017669,2]
[351135388,1738348256204,-2605.9,0.00017669,2]
[351135389,1738348256213,-4721.91,0.00017669,2]
[351135390,1738348256222,-2283.47,0.00017669,2]
[351135391,1738348256232,-939.45,0.00017669,2]
[351135392,1738348256241,-2389.08,0.00017669,2]
[351135393,1738348256250,-262.19363027,0.00017669,2]
[351135394,1738348256259,-500.0,0.00017669,2]
[351135395,1738348256269,-557.93,0.00017669,2]
[351135396,1738348256278,-965.04,0.00017669,2]
[351135397,1738348256287,-2395.63,0.00017669,2]
[351135398,1738348256297,-1060.87,0.00017669,2]
[351135399,1738348256307,-1276.49,0.00017669,2]
[351135400,1738348256316,-500.0,0.00017669,2]
[351135401,1738348256326,-500.0,0.00017669,2]
[351135402,1738348256336,-500.0,0.00017669,2]
[351135403,1738348256345,-500.0,0.00017669,2]
[351135404,1738348256356,-973.6,0.00017669,2]
[351135405,1738348256366,-500.0,0.00017669,2]
[351135406,1738348256375,-870.13,0.00017669,2]
[351135407,1738348256384,-500.0,0.0001767,2]
[351135408,1738348256393,-510.61,0.0001767,2]
[351135409,1738348256402,-276.76518783,0.0001767,2]
[351135410,1738348256411,-500.0,0.0001767,2]
[351135411,1738348256425,-500.0,0.0001767,2]
[351135412,1738348256434,-509.39728153,0.0001767,2]
[351135413,1738348256444,-500.0,0.0001767,2]
[351135414,1738348256453,-500.0,0.0001767,2]
[351135415,1738348256462,-573.32,0.0001767,2]
[351135416,1738348256471,-500.0,0.0001767,2]
[351135417,1738348256481,-500.0,0.0001767,2]
[351135418,1738348256491,-500.0,0.0001767,2]
[351135419,1738348256503,-500.0,0.0001767,2]
[351135420,1738348256513,-500.0,0.0001767,2]
[351135421,1738348256523,-500.0,0.0001767,2]
[351135422,1738348256532,-355.58630846,0.0001767,2]
[351135423,1738348256542,-368.09912328,0.0001767,2]
[351135424,1738348256552,-1455.79,0.00017671,2]
[351135425,1738348256562,-686.9,0.00017671,2]
[351135426,1738348256572,-500.0,0.00017671,2]
[351135427,1738348256583,-500.0,0.00017671,2]
[351135428,1738348256593,-2551.27,0.00017671,2]
[351135429,1738348256602,-1359.74,0.00017671,2]
[351135430,1738348256612,-3164.08,0.00017671,2]
[351135431,1738348256622,-1771.52,0.00017671,2]
[351135432,1738348256632,-500.0,0.00017671,2]
[351135433,1738348256642,-3352.95,0.00017671,2]
[351135434,1738348256651,-1723.08,0.00017671,2]
[351135435,1738348256661,-594.4267504,0.00017671,2]
[351135436,1738348256678,-904.61,0.00017671,2]
[351135437,1738348256688,-3205.13,0.00017671,2]
[351135438,1738348256697,-2877.99,0.00017671,2]
[351135439,1738348256707,-2087.9,0.00017671,2]
[351135440,1738348256716,-500.0,0.00017671,2]
[351135441,1738348256726,-500.0,0.00017671,2]
[351135442,1738348256736,-2031.19,0.00017671,2]
[351135443,1738348256747,-1464.79,0.00017671,2]
[351135444,1738348256757,-500.0,0.00017671,2]
[351135445,1738348256767,-7094.67,0.00017671,2]
[351135446,1738348256777,-846.73,0.00017671,2]
[351135447,1738348256786,-1572.93,0.00017671,2]
[351135448,1738348256796,-200.0,0.0001769,2]
[351135449,1738348256805,-438.33,0.00017699,2]
[351135450,1738348256815,-150.0,0.00017699,2]
[351135451,1738348256825,-150.0,0.00017699,2]
[351135452,1738348256835,-298.42,0.00017699,2]
[351135453,1738348256845,-150.0,0.00017699,2]
[351135454,1738348256855,-304.94,0.00017699,2]
[351135455,1738348256864,-438.33,0.00017699,2]
[351135456,1738348256873,-298.42,0.00017699,2]
[351135457,1738348256882,-150.0,0.00017699,2]
[351135458,1738348256891,-150.0,0.00017699,2]
[351135459,1738348256901,-150.0,0.00017699,2]
[351135460,1738348256911,-150.0,0.00017699,2]
[351135461,1738348256924,-150.0,0.00017699,2]
[351135462,1738348256933,-150.0,0.00017699,2]
[351135463,1738348256942,-438.33,0.00017699,2]
[351135464,1738348256951,-298.42,0.00017699,2]
[351135465,1738348256960,-438.33,0.00017699,2]
[351135466,1738348256969,-298.42,0.00017699,2]
[351135467,1738348256979,-150.0,0.00017699,2]
[351135468,1738348256990,-150.0,0.00017699,2]
[351135469,1738348256999,-997.17049626,0.00017705,2]
[351135470,1738348257009,-565.22,0.00017727,2]
[351135471,1738348257018,-565.22,0.00017727,2]
[351135472,1738348257027,-565.22,0.00017727,2]
[351135473,1738348257037,-565.22,0.00017727,2]
[351135474,1738348257046,-1202.0,0.00017782,2]
[351135475,1738348257056,-1153.16590249,0.00017797,2]
[351135476,1738348257067,-4828.93,0.000178,2]
[351135477,1738348257075,-500.0,0.00017804,2]
[351135478,1738348257085,-500.0,0.00017804,2]
[351135479,1738348257094,-500.0,0.00017804,2]
[351135480,1738348257104,-500.0,0.00017804,2]
[351135481,1738348257114,-500.0,0.00017804,2]
[351135482,1738348257125,-500.0,0.00017804,2]
[351135483,1738348257134,-500.0,0.00017804,2]
[351135484,1738348257144,-500.0,0.00017804,2]
[351135485,1738348257153,-500.0,0.00017804,2]
[351135486,1738348257162,-500.0,0.00017804,2]
[351135487,1738348257175,-500.0,0.00017804,2]
[351135488,1738348257184,-500.0,0.00017804,2]
[351135489,1738348257194,-500.0,0.00017804,2]
[351135490,1738348257203,-500.0,0.00017804,2]
[351135491,1738348257212,-500.0,0.00017804,2]
[351135492,1738348257222,-500.0,0.00017804,2]
[351135493,1738348257231,-500.0,0.00017804,2]
[351135494,1738348257241,-247.53440274,0.00017804,2]
[351135495,1738348257251,-303.34744665,0.00017804,2]
[351135496,1738348257261,-500.0,0.00017804,2]
[351135497,1738348257271,-500.0,0.00017804,2]
[351135498,1738348257280,-500.0,0.00017804,2]
[351135499,1738348257291,-500.0,0.00017804,2]
[351135500,1738348257300,-786.06,0.00017804,2]
[351135501,1738348257310,-500.0,0.00017804,2]
[351135502,1738348257320,-500.0,0.00017804,2]
[351135503,1738348257332,-500.0,0.00017804,2]
[351135504,1738348257343,-744.03,0.00017804,2]
[351135505,1738348257354,-1041.45,0.00017804,2]
[351135506,1738348257364,-228.86972766,0.00017804,2]
[351135507,1738348257373,-500.0,0.00017804,2]
[351135508,1738348257383,-679.36,0.00017804,2]
[351135509,1738348257395,-500.0,0.00017804,2]
[351135510,1738348257404,-639.49,0.00017804,2]
[351135511,1738348257415,-983.34,0.00017804,2]
[351135512,1738348257429,-853.27,0.00017804,2]
[351135513,1738348257439,-2290.49,0.00017804,2]
[351135514,1738348257448,-15748.87,0.00017804,2]
[351135515,1738348257457,-1756.23,0.00017804,2]
[351135516,1738348257467,-5804.66,0.00017804,2]
[351135517,1738348257475,-1011.15,0.00017804,2]
[351135518,1738348257486,-1398.05,0.00017804,2]
[351135519,1738348257495,-565.22,0.00017804,2]
[351135520,1738348257507,-500.0,0.00017804,2]
[351135521,1738348257516,-706.26,0.00017804,2]
[351135522,1738348257526,-1396.62,0.00017804,2]
[351135523,1738348257536,-1348.69,0.00017804,2]
[351135524,1738348257548,-1000.0,0.00017804,2]
[351135525,1738348257557,-1491.37,0.00017804,2]
[351135526,1738348257567,-500.0,0.00017805,2]
[351135527,1738348257576,-500.0,0.00017805,2]
[351135528,1738348257586,-255.95234054,0.00017805,2]
[351135529,1738348257595,-500.0,0.00017805,2]
[351135530,1738348257604,-500.0,0.00017805,2]
[351135531,1738348257614,-500.0,0.00017805,2]
[351135532,1738348257623,-592.09,0.00017805,2]
[351135533,1738348257633,-541.54,0.00017805,2]
[351135534,1738348257643,-500.0,0.00017805,2]
[351135535,1738348257653,-661.57,0.00017805,2]
[351135536,1738348257662,-500.0,0.00017805,2]
[351135537,1738348257677,-568.28,0.00017805,2]
[351135538,1738348257687,-517.91,0.00017805,2]
[351135539,1738348257696,-500.0,0.00017805,2]
[351135540,1738348257706,-500.0,0.00017805,2]
[351135541,1738348257715,-573.54,0.00017805,2]
[351135542,1738348257726,-500.0,0.00017805,2]
[351135543,1738348257735,-500.0,0.00017805,2]
[351135544,1738348257744,-730.37,0.00017805,2]
[351135545,1738348257754,-1026.2,0.00017805,2]
[351135546,1738348257763,-500.0,0.00017805,2]
[351135547,1738348257773,-536.25,0.00017805,2]
[351135548,1738348257783,-978.34,0.00017805,2]
[351135549,1738348257792,-519.92,0.00017805,2]
[351135550,1738348257802,-932.35,0.00017805,2]
[351135551,1738348257811,-1577.73,0.00017805,2]
[351135552,1738348257821,-647.42,0.00017805,2]
[351135553,1738348257831,-286.106421,0.00017805,2]
[351135554,1738348257841,-2652.51,0.00017805,2]
[351135555,1738348257850,-500.0,0.00017805,2]
[351135556,1738348257860,-551.45,0.00017805,2]
[351135557,1738348257869,-616.52,0.00017805,2]
[351135558,1738348257879,-1010.98,0.00017805,2]
[351135559,1738348257889,-611.99,0.00017805,2]
[351135560,1738348257898,-1917.23,0.00017805,2]
[351135561,1738348257907,-345.181563,0.00017805,2]
[351135562,1738348257916,-1746.14,0.00017805,2]
[351135563,1738348257930,-1127.11,0.00017805,2]
[351135564,1738348257940,-957.27,0.00017805,2]
[351135565,1738348257949,-683.39,0.00017805,2]
[351135566,1738348257959,-834.53,0.00017805,2]
[351135567,1738348257968,-3304.95,0.00017805,2]
[351135568,1738348257978,-1375.96,0.00017805,2]
[351135569,1738348257987,-1152.1,0.00017805,2]
[351135570,1738348257997,-1117.85,0.00017805,2]
[351135571,1738348258006,-637.73,0.00017805,2]
[351135572,1738348258015,-1174.79,0.00017805,2]
[351135573,1738348258024,-861.45,0.00017805,2]
[351135574,1738348258034,-1552.68,0.00017805,2]
[351135575,1738348258043,-5050.15,0.00017805,2]
[351135576,1738348258052,-1714.15,0.00017805,2]
[351135577,1738348258062,-970.54,0.00017805,2]
[351135578,1738348258071,-974.2,0.00017805,2]
[351135579,1738348258081,-2977.2,0.00017805,2]
[351135580,1738348258090,-2472.78,0.00017805,2]
[351135581,1738348258099,-2130.65,0.00017805,2]
[351135582,1738348258109,-2310.79,0.00017805,2]
[351135583,1738348258118,-3082.33,0.00017805,2]
[351135584,1738348258128,-1236.46,0.00017805,2]
[351135585,1738348258137,-500.0,0.00017805,2]
[351135586,1738348258147,-1531.95,0.00017805,2]
[351135587,1738348258156,-1897.38,0.00017805,2]
[351135588,1738348258166,-500.0,0.00017805,2]
[351135589,1738348258179,-4363.87,0.00017805,2]
[351135590,1738348258188,-4150.61,0.00017805,2]
[351135591,1738348258197,-500.0,0.00017805,2]
[351135592,1738348258257,-977.31,0.00017805,2]
[351135593,1738348258267,-500.0,0.00017805,2]
[351135594,1738348258276,-500.0,0.00017805,2]
[351135595,1738348258285,-500.0,0.00017805,2]
[351135596,1738348258296,-755.3,0.00017805,2]
[351135597,1738348258305,-657.65,0.00017806,2]
[351135598,1738348258314,-500.0,0.00017806,2]
[351135599,1738348258323,-596.48663994,0.00017806,2]
[351135600,1738348258332,-500.0,0.00017806,2]
[351135601,1738348258342,-500.0,0.00017806,2]
[351135602,1738348258351,-500.0,0.00017806,2]
[351135603,1738348258361,-500.0,0.00017806,2]
[351135604,1738348258370,-646.57572134,0.00017806,2]
[351135605,1738348258379,-500.0,0.00017806,2]
[351135606,1738348258388,-772.66,0.00017806,2]
[351135607,1738348258397,-500.0,0.00017806,2]
[351135608,1738348258406,-500.0,0.00017806,2]
[351135609,1738348258415,-606.93,0.00017806,2]
[351135610,1738348258429,-500.0,0.00017806,2]
[351135611,1738348258438,-522.94,0.00017806,2]
[351135612,1738348258447,-691.72,0.00017806,2]
[351135613,1738348258456,-694.08,0.00017806,2]
[351135614,1738348258465,-5000.0,0.00017806,4]
[351135615,1738348258475,-500.0,0.00017806,2]
[351135616,1738348258484,-500.0,0.00017806,2]
[351135617,1738348258498,-622.01,0.00017806,2]
[351135618,1738348258507,-500.0,0.00017806,2]
[351135619,1738348258515,-500.0,0.00017806,2]
[351135620,1738348258524,-500.0,0.00017806,2]
[351135621,1738348258534,-500.0,0.00017806,2]
[351135622,1738348258544,-799.89,0.00017806,2]
[351135623,1738348258553,-500.0,0.00017806,2]
[351135624,1738348258563,-666.3,0.00017806,2]
[351135625,1738348258572,-529.50295033,0.00017806,2]
[351135626,1738348258582,-536.21,0.00017806,2]
[351135627,1738348258591,-500.0,0.00017806,2]
[351135628,1738348258600,-1030.96,0.00017806,2]
[351135629,1738348258608,-872.1,0.00017806,2]
[351135630,1738348258618,-544.21,0.00017806,2]
[351135631,1738348258627,-500.0,0.00017806,2]
[351135632,1738348258636,-500.0,0.00017806,2]
[351135633,1738348258645,-4715.16,0.00017806,2]
[351135634,1738348258654,-500.0,0.00017806,2]
[351135635,1738348258663,-993.3,0.00017806,2]
[351135636,1738348258677,-2605.9,0.00017806,2]
[351135637,1738348258687,-4721.91,0.00017806,2]
[351135638,1738348258696,-2283.47,0.00017806,2]
[351135639,1738348258706,-939.45,0.00017806,2]
[351135640,1738348258715,-2389.08,0.00017806,2]
[351135641,1738348258725,-500.0,0.00017806,2]
[351135642,1738348258734,-557.93,0.00017806,2]
[351135643,1738348258743,-965.04,0.00017806,2]
[351135644,1738348258752,-2395.63,0.00017806,2]
[351135645,1738348258762,-1060.87,0.00017806,2]
[351135646,1738348258771,-1276.49,0.00017806,2]
[351135647,1738348258781,-500.0,0.00017806,2]
[351135648,1738348258791,-500.0,0.00017806,2]
[351135649,1738348258800,-973.6,0.00017806,2]
[351135650,1738348258810,-500.0,0.00017806,2]
[351135651,1738348258819,-870.13,0.00017806,2]
[351135652,1738348258828,-596.32136742,0.00017807,2]
[351135653,1738348258837,-510.61,0.00017807,2]
[351135654,1738348258847,-500.0,0.00017807,2]
[351135655,1738348258856,-500.0,0.00017807,2]
[351135656,1738348258865,-500.0,0.00017807,2]
[351135657,1738348258874,-500.0,0.00017807,2]
[351135658,1738348258883,-500.0,0.00017807,2]
[351135659,1738348258892,-500.0,0.00017807,2]
[351135660,1738348258902,-500.0,0.00017807,2]
[351135661,1738348258911,-500.0,0.00017807,2]
[351135662,1738348258926,-500.0,0.00017807,2]
[351135663,1738348258936,-1455.79,0.00017808,2]
[351135664,1738348258946,-686.9,0.00017808,2]
[351135665,1738348258955,-500.0,0.00017808,2]
[351135666,1738348258965,-500.0,0.00017808,2]
[351135667,1738348258974,-2551.27,0.00017808,2]
[351135668,1738348258984,-1359.74,0.00017808,2]
[351135669,1738348258994,-3164.08,0.00017808,2]
[351135670,1738348259004,-1771.52,0.00017808,2]
[351135671,1738348259013,-500.0,0.00017808,2]
[351135672,1738348259023,-3352.95,0.00017808,2]
[351135673,1738348259032,-1723.08,0.00017808,2]
[351135674,1738348259042,-904.61,0.00017808,2]
[351135675,1738348259052,-3205.13,0.00017808,2]
[351135676,1738348259061,-2877.99,0.00017808,2]
[351135677,1738348259071,-2087.9,0.00017808,2]
[351135678,1738348259081,-500.0,0.00017808,2]
[351135679,1738348259091,-500.0,0.00017808,2]
[351135680,1738348259101,-2031.19,0.00017808,2]
[351135681,1738348259111,-1464.79,0.00017808,2]
[351135682,1738348259120,-500.0,0.00017808,2]
[351135683,1738348259130,-7094.67,0.00017808,2]
[351135684,1738348259140,-846.73,0.00017808,2]
[351135685,1738348259150,-1572.93,0.00017808,2]
[351135686,1738348259159,-758.23,0.00017844,2]
[351135687,1738348259172,-167.0,0.00017864,2]
[351135688,1738348259181,-171.98,0.00017873,2]
[351135689,1738348259191,-172.05062334,0.000179,2]
[351135690,1738348259201,-1153.16590249,0.00017934,2]
[351135691,1738348259210,-500.0,0.00017941,2]
[351135692,1738348259220,-500.0,0.00017941,2]
[351135693,1738348259229,-500.0,0.00017941,2]
[351135694,1738348259239,-500.0,0.00017941,2]
[351135695,1738348259249,-500.0,0.00017941,2]
[351135696,1738348259258,-500.0,0.00017941,2]
[351135697,1738348259268,-500.0,0.00017941,2]
[351135698,1738348259277,-500.0,0.00017941,2]
[351135699,1738348259286,-500.0,0.00017941,2]
[351135700,1738348259296,-500.0,0.00017941,2]
[351135701,1738348259305,-500.0,0.00017941,2]
[351135702,1738348259315,-500.0,0.00017941,2]
[351135703,1738348259324,-535.24620218,0.00017941,2]
[351135704,1738348259333,-469.32465128,0.00017941,2]
[351135705,1738348259343,-500.0,0.00017941,2]
[351135706,1738348259352,-500.0,0.00017941,2]
[351135707,1738348259361,-272.81471584,0.00017941,2]
[351135708,1738348259371,-786.06,0.00017941,2]
[351135709,1738348259380,-639.13,0.00017941,2]
[351135710,1738348259390,-500.0,0.00017941,2]
[351135711,1738348259399,-744.03,0.00017941,2]
[351135712,1738348259409,-1041.45,0.00017941,2]
[351135713,1738348259418,-500.0,0.00017941,2]
[351135714,1738348259430,-679.36,0.00017941,2]
[351135715,1738348259439,-500.0,0.00017941,2]
[351135716,1738348259448,-639.49,0.00017941,2]
[351135717,1738348259457,-983.34,0.00017941,2]
[351135718,1738348259466,-853.27,0.00017941,2]
[351135719,1738348259476,-2290.49,0.00017941,2]
[351135720,1738348259486,-15748.87,0.00017941,2]
[351135721,1738348259498,-1756.23,0.00017941,2]
[351135722,1738348259510,-5804.66,0.00017941,2]
[351135723,1738348259519,-1011.15,0.00017941,2]
[351135724,1738348259528,-1398.05,0.00017941,2]
[351135725,1738348259539,-500.0,0.00017941,2]
[351135726,1738348259549,-706.26,0.00017941,2]
[351135727,1738348259559,-1396.62,0.00017941,2]
[351135728,1738348259568,-1348.69,0.00017941,2]
[351135729,1738348259580,-1000.0,0.00017941,2]
[351135730,1738348259590,-1491.37,0.00017941,2]
[351135731,1738348259599,-500.0,0.00017942,2]
[351135732,1738348259608,-500.0,0.00017942,2]
[351135733,1738348259617,-500.0,0.00017942,2]
[351135734,1738348259627,-500.0,0.00017942,2]
[351135735,1738348259636,-500.0,0.00017942,2]
[351135736,1738348259646,-592.09,0.00017942,2]
[351135737,1738348259655,-541.54,0.00017942,2]
[351135738,1738348259664,-229.98211868,0.00017942,2]
[351135739,1738348259677,-661.57,0.00017942,2]
[351135740,1738348259686,-500.0,0.00017942,2]
[351135741,1738348259696,-568.28,0.00017942,2]
[351135742,1738348259705,-517.91,0.00017942,2]
[351135743,1738348259714,-500.0,0.00017942,2]
[351135744,1738348259724,-500.0,0.00017942,2]
[351135745,1738348259734,-573.54,0.00017942,2]
[351135746,1738348259743,-500.0,0.00017942,2]
[351135747,1738348259752,-500.0,0.00017942,2]
[351135748,1738348259761,-730.37,0.00017942,2]
[351135749,1738348259771,-1026.2,0.00017942,2]
[351135750,1738348259780,-500.0,0.00017942,2]
[351135751,1738348259790,-536.25,0.00017942,2]
[351135752,1738348259799,-978.34,0.00017942,2]
[351135753,1738348259808,-519.92,0.00017942,2]
[351135754,1738348259818,-932.35,0.00017942,2]
[351135755,1738348259827,-1577.73,0.00017942,2]
[351135756,1738348259837,-647.42,0.00017942,2]
[351135757,1738348259847,-2652.51,0.00017942,2]
[351135758,1738348259856,-286.106421,0.00017942,2]
[351135759,1738348259865,-500.0,0.00017942,2]
[351135760,1738348259875,-551.45,0.00017942,2]
[351135761,1738348259884,-616.52,0.00017942,2]
[351135762,1738348259894,-611.99,0.00017942,2]
[351135763,1738348259903,-1917.23,0.00017942,2]
[351135764,1738348259912,-1010.98,0.00017942,2]
[351135765,1738348259926,-500.0,0.00017942,2]
[351135766,1738348259935,-345.181563,0.00017942,2]
[351135767,1738348259944,-1746.14,0.00017942,2]
[351135768,1738348259954,-1127.11,0.00017942,2]
[351135769,1738348259964,-957.27,0.00017942,2]
[351135770,1738348259973,-683.39,0.00017942,2]
[351135771,1738348259983,-834.53,0.00017942,2]
[351135772,1738348259993,-3304.95,0.00017942,2]
[351135773,1738348260003,-1375.96,0.00017942,2]
[351135774,1738348260013,-1152.1,0.00017942,2]
[351135775,1738348260022,-1117.85,0.00017942,2]
[351135776,1738348260032,-637.73,0.00017942,2]
[351135777,1738348260042,-1174.79,0.00017942,2]
[351135778,1738348260052,-861.45,0.00017942,2]
[351135779,1738348260062,-5050.15,0.00017942,2]
[351135780,1738348260072,-1552.68,0.00017942,2]
[351135781,1738348260082,-1714.15,0.00017942,2]
[351135782,1738348260091,-970.54,0.00017942,2]
[351135783,1738348260101,-974.2,0.00017942,2]
[351135784,1738348260111,-2977.2,0.00017942,2]
[351135785,1738348260121,-2472.78,0.00017942,2]
[351135786,1738348260131,-2130.65,0.00017942,2]
[351135787,1738348260140,-2310.79,0.00017942,2]
[351135788,1738348260150,-3082.33,0.00017942,2]
[351135789,1738348260160,-1236.46,0.00017942,2]
[351135790,1738348260173,-500.0,0.00017942,2]
[351135791,1738348260183,-1531.95,0.00017942,2]
[351135792,1738348260192,-1897.38,0.00017942,2]
[351135793,1738348260201,-565.22,0.00017942,2]
[351135794,1738348260211,-500.0,0.00017942,2]
[351135795,1738348260220,-4363.87,0.00017942,2]
[351135796,1738348260230,-4150.61,0.00017942,2]
[351135797,1738348260240,-500.0,0.00017942,2]
[351135798,1738348260250,-977.31,0.00017942,2]
[351135799,1738348260259,-500.0,0.00017942,2]
[351135800,1738348260269,-500.0,0.00017942,2]
[351135801,1738348260279,-500.0,0.00017942,2]
[351135802,1738348260289,-755.3,0.00017942,2]
[351135803,1738348260299,-657.65,0.00017943,2]
[351135804,1738348260308,-500.0,0.00017943,2]
[351135805,1738348260318,-614.93091515,0.00017943,2]
[351135806,1738348260328,-500.0,0.00017943,2]
[351135807,1738348260338,-500.0,0.00017943,2]
[351135808,1738348260348,-500.0,0.00017943,2]
[351135809,1738348260358,-500.0,0.00017943,2]
[351135810,1738348260368,-772.66,0.00017943,2]
[351135811,1738348260378,-500.0,0.00017943,2]
[351135812,1738348260388,-500.0,0.00017943,2]
[351135813,1738348260398,-606.93,0.00017943,2]
[351135814,1738348260408,-500.0,0.00017943,2]
[351135815,1738348260417,-522.94,0.00017943,2]
[351135816,1738348260430,-691.72,0.00017943,2]
[351135817,1738348260440,-694.08,0.00017943,2]
[351135818,1738348260450,-500.0,0.00017943,2]
[351135819,1738348260459,-500.0,0.00017943,2]
[351135820,1738348260469,-622.01,0.00017943,2]
[351135821,1738348260478,-500.0,0.00017943,2]
[351135822,1738348260488,-500.0,0.00017943,2]
[351135823,1738348260499,-500.0,0.00017943,2]
[351135824,1738348260510,-500.0,0.00017943,2]
[351135825,1738348260520,-799.89,0.00017943,2]
[351135826,1738348260530,-500.0,0.00017943,2]
[351135827,1738348260541,-666.3,0.00017943,2]
[351135828,1738348260550,-536.21,0.00017943,2]
[351135829,1738348260561,-500.0,0.00017943,2]
[351135830,1738348260572,-1030.96,0.00017943,2]
[351135831,1738348260582,-872.1,0.00017943,2]
[351135832,1738348260593,-544.21,0.00017943,2]
[351135833,1738348260603,-500.0,0.00017943,2]
[351135834,1738348260613,-500.0,0.00017943,2]
[351135835,1738348260623,-4715.16,0.00017943,2]
[351135836,1738348260633,-500.0,0.00017943,2]
[351135837,1738348260643,-993.3,0.00017943,2]
[351135838,1738348260653,-2605.9,0.00017943,2]
[351135839,1738348260664,-4721.91,0.00017943,2]
[351135840,1738348260677,-2283.47,0.00017943,2]
[351135841,1738348260687,-939.45,0.00017943,2]
[351135842,1738348260696,-2389.08,0.00017943,2]
[351135843,1738348260706,-500.0,0.00017943,2]
[351135844,1738348260715,-557.93,0.00017943,2]
[351135845,1738348260725,-965.04,0.00017943,2]
[351135846,1738348260735,-2395.63,0.00017943,2]
[351135847,1738348260745,-1060.87,0.00017943,2]
[351135848,1738348260755,-1276.49,0.00017943,2]
[351135849,1738348260765,-500.0,0.00017943,2]
[351135850,1738348260774,-500.0,0.00017943,2]
[351135851,1738348260784,-973.6,0.00017943,2]
[351135852,1738348260793,-500.0,0.00017943,2]
[351135853,1738348260803,-870.13,0.00017943,2]
[351135854,1738348260812,-510.61,0.00017944,2]
[351135855,1738348260822,-500.0,0.00017944,2]
[351135856,1738348260831,-500.0,0.00017944,2]
[351135857,1738348260841,-500.0,0.00017944,2]
[351135858,1738348260851,-500.0,0.00017944,2]
[351135859,1738348260860,-500.0,0.00017944,2]
[351135860,1738348260870,-500.0,0.00017944,2]
[351135861,1738348260880,-500.0,0.00017944,2]
[351135862,1738348260891,-500.0,0.00017944,2]
[351135863,1738348260901,-1455.79,0.00017945,2]
[351135864,1738348260911,-686.9,0.00017945,2]
[351135865,1738348260924,-546.09766541,0.00017945,2]
[351135866,1738348260934,-500.0,0.00017945,2]
[351135867,1738348260945,-2551.27,0.00017945,2]
[351135868,1738348260954,-1359.74,0.00017945,2]
[351135869,1738348260965,-3164.08,0.00017945,2]
[351135870,1738348260975,-1771.52,0.00017945,2]
[351135871,1738348260984,-500.0,0.00017945,2]
[351135872,1738348260994,-3352.95,0.00017945,2]
[351135873,1738348261004,-1723.08,0.00017945,2]
[351135874,1738348261015,-904.61,0.00017945,2]
[351135875,1738348261024,-3205.13,0.00017945,2]